bitfinex/quotes_ETHUSD_20240816
["timestamp","ask_amount","ask_price","bid_price","bid_amount"]
[1723822287520,3.89002,2570.7,2570.1,4.12119]
[1723822287733,3.89002,2570.7,2570.2,3.642549]
[1723822287933,3.89038,2570.5,2570.2,0.642549]
[1723822288142,3.89038,2570.5,2570.0,3.89095]
[1723822289109,3.89008,2570.7,2570.0,3.89095]
[1723822289244,3.89008,2570.7,2570.1,0.389095]
[1723822289447,3.88938,2571.1,2570.4,3.89035]
[1723822290148,3.88938,2571.1,2570.1,4.279975]
[1723822290509,7.77717,2571.7,2571.0,3.88943]
[1723822290668,7.77717,2571.7,2570.3,3.89057]
[1723822290669,0.42053835,2571.6,2571.3,3.88898]
[1723822290988,2.80238761,2572.2,2571.3,3.88898]
[1723822290989,3.88842,2571.8,2571.4,0.388898]
[1723822291153,3.88842,2571.8,2571.3,3.88898]
[1723822291353,2.2767,2572.3,2571.4,0.07776767]
[1723822291587,2.2767,2572.3,2570.7,3.0]
[1723822291588,3.88721,2572.6,2571.9,3.88808]
[1723822291816,3.88754,2572.4,2571.7,7.77671]
[1723822292027,3.88759,2572.3,2571.7,8.02312]
[1723822292154,0.42070566,2572.2,2571.7,4.13473]
[1723822292357,3.88751,2572.4,2571.8,3.88832]
[1723822292594,3.88721,2572.6,2572.0,3.88801]
[1723822292755,3.88744,2572.4,2571.8,0.659873]
[1723822292953,3.88744,2572.4,2571.2,3.88919]
[1723822292954,3.88812,2572.0,2571.4,3.88881]
[1723822293181,3.88817,2571.9,2571.5,3.0]
[1723822293381,3.88791,2572.1,2571.5,3.88877]
[1723822293692,3.88791,2572.1,2571.5,3.88869]
[1723822294054,3.88764,2572.3,2571.5,4.7085159]
[1723822294260,3.8875,2572.4,2571.5,0.8198259]
[1723822294459,3.88736,2572.5,2571.7,3.88837]
[1723822294460,3.8876,2572.3,2571.7,3.88837]
[1723822294771,7.77477,2572.5,2571.7,4.277207]
[1723822295091,3.88736,2572.5,2571.9,3.88807]
[1723822295253,3.88736,2572.5,2571.9,7.77615]
[1723822295453,3.88735,2572.5,2571.9,8.8299687]
[1723822295689,3.8869,2572.8,2572.3,3.88753]
[1723822295895,3.8869,2572.8,2572.2,3.88763]
[1723822296059,7.77382,2572.8,2572.2,3.88763]
[1723822296257,7.77382,2572.8,2572.2,3.88762]
[1723822296258,7.7738,2572.8,2572.2,3.88762]
[1723822296484,3.8869,2572.8,2572.2,3.88762]
[1723822296701,3.88706,2572.7,2572.0,8.50733087]
[1723822296865,3.95992335,2572.6,2571.8,6.26128]
[1723822297068,0.1028047,2572.9,2571.8,3.88818]
[1723822297069,3.88743,2572.4,2571.8,3.88818]
[1723822297290,3.88743,2572.4,2571.8,4.514368]
[1723822297517,3.88721,2572.6,2571.9,3.88816]
[1723822297658,3.88721,2572.6,2571.9,4.3395888]
[1723822297856,3.88705,2572.7,2572.1,7.77563]
[1723822298104,4.41704693,2572.9,2571.9,0.4514288]
[1723822298105,0.53029693,2572.9,2571.9,0.4514288]
[1723822298407,0.1028047,2572.9,2572.1,3.88784]
[1723822298576,0.1028047,2572.9,2572.6,3.88701]
[1723822298988,7.77384,2572.8,2572.2,3.8877]
[1723822299161,3.88721,2572.6,2571.9,6.752279]
[1723822299361,3.88742,2572.4,2571.7,3.88837]
[1723822299665,3.88742,2572.4,2571.8,7.77643]
[1723822299899,3.88742,2572.4,2571.8,3.88819]
[1723822300261,7.77438,2572.6,2572.0,3.88793]
[1723822300462,3.88713,2572.6,2571.9,3.88803]
[1723822300700,3.88745,2572.4,2571.7,3.88834]
[1723822301022,3.88721,2572.6,2571.9,3.88814]
[1723822301179,3.88688,2572.8,2571.6,2.3886]
[1723822301380,3.88721,2572.6,2572.1,3.88786]
[1723822301703,3.88721,2572.6,2571.7,0.53886]
[1723822301704,3.88709,2572.7,2572.0,3.88788]
[1723822302161,3.88709,2572.7,2571.6,6.27712]
[1723822302162,0.07280335,2572.6,2571.6,6.27712]
[1723822302359,3.88736,2572.5,2571.9,3.88811]
[1723822302618,3.88701,2572.7,2572.0,3.88793]
[1723822302831,3.88712,2572.6,2572.0,3.88793]
[1723822303131,3.88701,2572.7,2572.1,3.88779]
[1723822303422,3.88701,2572.7,2571.8,0.6316312]
[1723822303423,0.1028047,2572.9,2572.4,7.77462]
[1723822303633,0.1028047,2572.9,2572.5,3.88724]
[1723822303843,0.1028047,2572.9,2572.5,3.88713]
[1723822303976,3.88697,2572.7,2572.0,3.88799]
[1723822304176,3.8873,2572.5,2572.0,1.10816312]
[1723822304422,3.88705,2572.7,2572.0,1.10816312]
[1723822304577,0.1028047,2572.9,2572.3,3.88755]
[1723822304783,0.1028047,2572.9,2572.5,3.88725]
[1723822305220,0.1028047,2572.9,2572.8,3.88681]
[1723822305581,0.1028047,2572.9,2572.7,3.88696]
[1723822305780,0.1028047,2572.9,2572.8,3.88681]
[1723822306199,0.1028047,2572.9,2572.8,7.77362]
[1723822307413,0.1028047,2572.9,2572.8,3.88681]
[1723822307989,0.1028047,2572.9,2572.8,7.85134053]
[1723822308532,0.1028047,2572.9,2572.8,11.66043]
[1723822308701,0.1028047,2572.9,2572.8,14.6936386]
[1723822309179,0.1028047,2572.9,2572.8,18.5804486]
[1723822309834,0.1028047,2572.9,2572.8,14.6936386]
[1723822310156,0.1028047,2572.9,2572.6,3.88701]
[1723822310297,0.1028047,2572.9,2572.8,3.88681]
[1723822310702,0.1028047,2572.9,2572.5,5.2887]
[1723822310901,0.1028047,2572.9,2572.7,3.88686]
[1723822311138,0.1028047,2572.9,2572.8,3.88681]
[1723822311581,0.1028047,2572.9,2572.4,3.88733]
[1723822311782,3.9895047,2572.9,2572.4,3.88729]
[1723822312035,0.1028047,2572.9,2572.4,4.276019]
[1723822312178,3.9894747,2572.9,2572.4,0.388729]
[1723822312383,0.1028047,2572.9,2572.5,3.88719]
[1723822313125,3.9894747,2572.9,2572.3,3.88747]
[1723822313279,0.1028047,2572.9,2572.5,3.88726]
[1723822313727,0.1028047,2572.9,2572.6,3.88699]
[1723822314992,0.1028047,2572.9,2572.7,3.88686]
[1723822315286,0.1028047,2572.9,2572.8,7.77362]
[1723822316253,0.1028047,2572.9,2572.8,11.66043]
[1723822316575,0.1028047,2572.9,2572.8,14.66043]
[1723822316753,0.1028047,2572.9,2572.8,16.372443]
[1723822316958,0.1028047,2572.9,2572.8,12.485633]
[1723822319385,0.1028047,2572.9,2572.8,4.712013]
[1723822319586,0.1028047,2572.9,2572.8,3.0]
[1723822319792,0.1028047,2572.9,2572.8,6.88681]
[1723822319971,0.1028047,2572.9,2572.7,7.77376]
[1723822320338,0.1028047,2572.9,2572.5,3.0]
[1723822320339,0.1028047,2572.9,2572.4,3.8873]
[1723822320540,0.1028047,2572.9,2572.1,2.3546]
[1723822320541,3.88689,2572.8,2572.5,0.636939]
[1723822320740,3.88689,2572.8,2572.2,7.77527]
[1723822320968,0.1028047,2572.9,2572.1,2.3546]
[1723822320969,0.1028047,2572.9,2572.5,3.88724]
[1723822321179,0.1028047,2572.9,2572.5,3.88715]
[1723822321540,0.1028047,2572.9,2572.0,11.33801]
[1723822321541,3.88707,2572.7,2572.0,11.33801]
[1723822321750,2.3766,2572.8,2572.3,3.88746]
[1723822322052,3.88698,2572.7,2572.2,3.88757]
[1723822322257,3.88722,2572.6,2572.1,3.112801]
[1723822322441,3.8873,2572.5,2572.1,3.112801]
[1723822322641,2.3766,2572.8,2572.1,7.000671]
[1723822322642,3.88712,2572.6,2572.1,7.000671]
[1723822322843,6.26353,2572.8,2572.2,5.3327631]
[1723822323038,3.9895747,2572.9,2572.3,0.84455641]
[1723822323039,3.9895647,2572.9,2572.3,0.84455641]
[1723822323284,3.88708,2572.7,2572.3,0.84455641]
[1723822323500,0.1028047,2572.9,2572.3,0.84455641]
[1723822323701,3.9894747,2572.9,2572.4,0.38445564]
[1723822324144,0.1028047,2572.9,2572.4,4.27175564]
[1723822324351,0.1028047,2572.9,2572.8,7.77362]
[1723822324546,0.1028047,2572.9,2572.8,11.454682]
[1723822324775,0.1028047,2572.9,2572.8,18.341492]
[1723822324940,0.00366682,2572.9,2572.8,18.341492]
[1723822325340,0.07280335,2574.3,2572.8,10.567872]
[1723822325540,3.88503,2574.0,2573.4,3.88581]
[1723822325746,3.88483,2574.2,2573.4,3.88581]
[1723822325973,7.76966,2574.2,2573.6,3.88551]
[1723822326173,7.76963,2574.2,2573.6,3.88551]
[1723822326368,3.8848,2574.2,2573.5,0.388581]
[1723822326575,3.8848,2574.2,2572.9,7.9433972]
[1723822326576,3.88554,2573.7,2573.0,3.88636]
[1723822326889,2.3356,2574.0,2573.2,3.88613]
[1723822327051,2.3356,2574.0,2573.4,3.88575]
[1723822327052,3.88501,2574.0,2573.4,3.88575]
[1723822327251,2.4675,2574.0,2573.4,3.88575]
[1723822327547,2.4675,2574.0,2573.4,8.54874]
[1723822327751,2.4675,2574.0,2573.5,3.88575]
[1723822327993,3.88462,2574.3,2573.7,3.88543]
[1723822328592,2.4744,2574.4,2573.9,3.88507]
[1723822328751,2.4744,2574.4,2574.0,3.88498]
[1723822329122,2.2741,2575.4,2574.0,2.3665]
[1723822329326,2.2741,2575.4,2575.1,3.88324]
[1723822329521,2.2741,2575.4,2574.6,3.88405]
[1723822329522,3.88328,2575.2,2574.6,3.88405]
[1723822329881,10.04007,2575.4,2574.7,3.88393]
[1723822330082,10.04007,2575.4,2574.5,3.88417]
[1723822330083,6.15706,2575.4,2574.5,3.88417]
[1723822330388,3.88213,2576.0,2575.2,3.88304]
[1723822330721,3.88238,2575.8,2575.2,3.88304]
[1723822330879,3.88238,2575.8,2574.7,3.88389]
[1723822331079,3.88204,2576.0,2575.3,3.88292]
[1723822331080,3.88218,2575.9,2575.3,3.88292]
[1723822331281,3.88214,2575.9,2575.2,7.76622]
[1723822331585,3.88269,2575.6,2575.0,7.76678]
[1723822331784,3.88242,2575.8,2575.1,0.776678]
[1723822332034,3.88103,2576.7,2574.8,3.0]
[1723822332035,3.88293,2575.4,2574.8,3.0]
[1723822332331,3.88329,2575.2,2574.1,6.52956]
[1723822332523,3.88329,2575.2,2574.6,3.884]
[1723822332686,3.88329,2575.2,2574.7,3.0]
[1723822333023,7.7666,2575.2,2574.7,3.0]
[1723822333206,7.7666,2575.2,2574.7,3.688399]
[1723822333207,3.88329,2575.2,2574.7,3.688399]
[1723822333516,3.8829,2575.4,2574.2,0.582565]
[1723822333517,3.88314,2575.3,2574.6,3.88396]
[1723822333721,3.88314,2575.3,2574.7,3.88388]
[1723822333919,3.88314,2575.3,2574.5,3.0]
[1723822333920,3.8829,2575.4,2574.8,3.88369]
[1723822334125,3.8829,2575.4,2574.6,4.572426]
[1723822334308,3.8829,2575.4,2574.7,3.0]
[1723822334309,3.88319,2575.2,2574.7,3.0]
[1723822334508,3.8829,2575.4,2574.7,3.0]
[1723822334509,3.8829,2575.4,2574.7,6.88393]
[1723822334832,1.02779395,2575.4,2574.2,0.582565]
[1723822334983,3.88426,2574.5,2574.0,3.88489]
[1723822335186,3.88426,2574.5,2573.1,5.589]
[1723822335187,0.07280335,2574.4,2573.6,3.88556]
[1723822335388,3.88449,2574.4,2573.8,0.625823]
[1723822335588,0.07280335,2574.3,2573.4,3.88583]
[1723822335789,0.07280335,2574.3,2572.5,13.32269781]
[1723822335790,3.88528,2573.9,2573.2,3.88611]
[1723822336030,3.88533,2573.8,2573.2,3.88608]
[1723822336609,2.38360335,2573.9,2573.2,3.88608]
[1723822336811,6.26887335,2573.9,2573.3,3.88605]
[1723822337211,6.26887335,2573.9,2573.2,3.88608]
[1723822337212,2.3108,2573.9,2573.4,3.8859]
[1723822337465,2.3108,2573.9,2573.5,3.88573]
[1723822337760,3.88488,2574.1,2573.4,3.88581]
[1723822338059,3.885,2574.0,2573.4,3.88581]
[1723822338231,3.885,2574.0,2573.2,4.274738]
[1723822338232,4.502478,2574.2,2573.2,0.388608]
[1723822338417,2.2922,2574.3,2573.3,0.3388608]
[1723822338618,3.88415,2574.6,2573.9,7.77005]
[1723822338928,3.88415,2574.6,2573.9,3.88502]
[1723822339342,3.88443,2574.4,2573.7,3.88537]
[1723822339654,2.2957,2574.7,2573.6,3.0]
[1723822339655,2.2957,2574.7,2574.1,3.88473]
[1723822339860,2.2957,2574.7,2574.2,3.88466]
[1723822340060,2.2957,2574.7,2574.1,3.88473]
[1723822340271,2.2957,2574.7,2573.9,3.88508]
[1723822340434,0.07280335,2574.6,2573.8,3.0]
[1723822340635,3.88501,2574.0,2573.8,3.0]
[1723822340829,6.16481,2574.0,2573.3,3.88599]
[1723822341015,3.8854,2573.8,2573.3,0.388599]
[1723822341220,3.8854,2573.8,2573.2,3.8862]
[1723822341519,3.8854,2573.8,2572.7,5.77804978]
[1723822341520,0.07280335,2573.7,2572.7,5.77804978]
[1723822341721,3.88624,2573.2,2572.7,3.88688]
[1723822342176,3.88624,2573.2,2572.5,11.33719]
[1723822342177,3.88624,2573.2,2572.5,11.33714]
[1723822342323,3.95897335,2573.3,2572.5,11.33714]
[1723822342525,6.37889,2573.4,2572.5,11.33714]
[1723822342526,3.88625,2573.2,2572.7,3.88695]
[1723822342745,3.88637,2573.1,2572.6,3.112714]
[1723822342950,3.88625,2573.2,2572.6,6.999744]
[1723822343150,3.88568,2573.6,2572.7,1.8336884]
[1723822343332,3.88568,2573.6,2572.9,3.88653]
[1723822343333,7.77139,2573.6,2572.9,3.88653]
[1723822343539,3.88615,2573.3,2572.7,3.88687]
[1723822343759,3.88615,2573.3,2572.6,3.112714]
[1723822343959,3.88591,2573.4,2572.8,3.8867]
[1723822344162,1.006049,2573.6,2572.6,3.112714]
[1723822344366,3.88637,2573.1,2572.5,11.33715]
[1723822344564,3.88629,2573.2,2572.5,11.33715]
[1723822344941,2.3342,2573.1,2572.5,11.33715]
[1723822345266,2.3342,2573.1,2572.7,3.88687]
[1723822345469,2.3342,2573.1,2572.5,10.562715]
[1723822345470,3.8861,2573.3,2572.6,3.88703]
[1723822345671,3.88648,2573.1,2572.5,10.562715]
[1723822345970,0.07280335,2573.0,2572.5,7.45]
[1723822346168,3.95928335,2573.1,2572.5,15.138732]
[1723822346466,3.95928335,2573.1,2572.5,11.251482]
[1723822346467,0.07280335,2573.0,2572.5,11.251482]
[1723822346667,0.07280335,2573.0,2572.5,7.45]
[1723822346838,3.88645,2573.1,2572.5,7.45]
[1723822347240,3.88666,2572.9,2572.5,7.45]
[1723822347662,3.88645,2573.1,2572.5,3.88725]
[1723822348064,7.77294,2573.1,2572.5,3.88725]
[1723822348249,3.88675,2572.9,2572.3,3.0]
[1723822348544,3.88747,2572.4,2572.1,7.45]
[1723822348744,3.88747,2572.4,2571.7,35.9384]
[1723822348745,0.07280335,2572.3,2571.7,32.05]
[1723822349042,3.88714,2572.6,2571.9,3.88804]
[1723822349043,3.88727,2572.5,2571.9,3.88804]
[1723822349241,2.419,2573.0,2571.9,3.88809]
[1723822349492,3.88705,2572.7,2572.1,3.88777]
[1723822349837,3.88695,2572.8,2572.2,3.88771]
[1723822350038,6.30558,2573.0,2572.2,3.88762]
[1723822350275,6.30558,2573.0,2572.2,8.552804]
[1723822350276,3.88691,2572.8,2572.2,8.552804]
[1723822350439,3.88691,2572.8,2572.2,3.88762]
[1723822350636,3.88691,2572.8,2572.3,3.0]
[1723822350832,3.88697,2572.7,2572.3,3.0]
[1723822351073,3.88697,2572.7,2572.2,3.88762]
[1723822351277,3.88743,2572.4,2571.8,3.8882]
[1723822351440,7.77494,2572.4,2571.8,3.8882]
[1723822351688,3.96038335,2572.3,2571.8,3.8882]
[1723822352037,7.77442,2572.6,2571.9,3.88815]
[1723822352211,3.88737,2572.5,2571.9,4.27697]
[1723822352726,0.2419,2572.9,2572.0,3.88791]
[1723822352727,3.8869,2572.8,2572.0,3.88791]
[1723822352932,3.8869,2572.8,2572.0,4.315607]
[1723822353211,3.88712,2572.6,2572.0,4.315607]
[1723822353413,3.88712,2572.6,2572.0,0.427697]
[1723822353614,7.84716335,2572.6,2572.0,4.315687]
[1723822353828,3.88735,2572.5,2572.0,3.88799]
[1723822354029,3.96015335,2572.5,2572.0,3.88799]
[1723822354313,3.88712,2572.6,2572.1,3.88778]
[1723822354471,6.30558,2573.0,2572.1,0.777577]
[1723822354677,2.404,2573.3,2572.0,3.0]
[1723822354875,3.88712,2572.6,2572.1,3.88783]
[1723822355112,3.88712,2572.6,2572.2,3.0]
[1723822355513,3.88697,2572.7,2572.2,6.88772]
[1723822355720,3.88691,2572.8,2572.2,3.0]
[1723822356031,3.88721,2572.6,2572.2,3.0]
[1723822356587,3.88674,2572.9,2572.4,3.88733]
[1723822356837,6.29016,2573.3,2572.6,3.88709]
[1723822357130,6.29016,2573.3,2572.4,3.88728]
[1723822357131,3.88653,2573.0,2572.4,3.88728]
[1723822357338,3.88653,2573.0,2572.2,5.3075]
[1723822357339,3.95950335,2572.9,2572.3,3.88747]
[1723822357642,3.88621,2573.2,2572.7,3.88694]
[1723822357987,3.88636,2573.1,2572.5,3.88718]
[1723822358193,7.77282,2573.1,2572.5,3.88718]
[1723822358394,3.88636,2573.1,2572.5,3.88718]
[1723822358588,6.919164,2573.3,2572.5,3.88718]
[1723822358589,3.88615,2573.3,2572.5,3.88718]
[1723822358795,3.88615,2573.3,2572.7,3.88686]
[1723822358796,3.88621,2573.2,2572.7,3.88686]
[1723822359023,3.88637,2573.1,2572.5,3.88716]
[1723822359236,3.88667,2572.9,2572.4,3.0]
[1723822359440,0.07280335,2573.0,2572.1,3.88782]
[1723822359441,3.88705,2572.7,2572.1,3.88782]
[1723822359589,3.88705,2572.7,2571.9,11.33808]
[1723822359590,3.88728,2572.5,2572.0,3.88802]
[1723822359788,3.88711,2572.6,2572.1,3.88786]
[1723822359990,3.95991335,2572.6,2572.1,5.5238348]
[1723822360234,3.95991335,2572.6,2572.1,3.88786]
[1723822360539,0.07280335,2572.6,2572.2,3.88768]
[1723822360735,3.88705,2572.7,2572.0,3.88792]
[1723822360938,3.88757,2572.3,2571.9,7.45]
[1723822361148,3.96054335,2572.2,2571.8,3.0]
[1723822361428,3.96054335,2572.2,2571.6,7.77704]
[1723822361429,3.96054335,2572.2,2571.7,3.88847]
[1723822361732,3.88737,2572.5,2571.9,3.88804]
[1723822361892,3.88737,2572.5,2572.0,0.8854054]
[1723822362092,0.07280335,2572.8,2571.5,12.26]
[1723822362093,3.88684,2572.8,2571.5,12.26]
[1723822362291,3.88704,2572.7,2572.2,3.88759]
[1723822362492,3.88676,2572.9,2572.2,2.331]
[1723822362693,2.4726,2573.3,2572.1,3.88785]
[1723822362694,3.88713,2572.6,2572.1,3.88785]
[1723822363201,3.88691,2572.8,2572.1,3.88785]
[1723822363413,3.88697,2572.7,2572.2,4.276495]
[1723822363792,2.4726,2573.3,2572.2,0.388785]
[1723822363793,3.88737,2572.5,2572.2,0.388785]
[1723822364173,3.88759,2572.3,2571.8,3.0]
[1723822364292,2.4726,2572.8,2571.7,7.45]
[1723822364293,3.88788,2572.1,2571.7,7.45]
[1723822364491,3.88788,2572.1,2571.6,3.8886]
[1723822364692,3.88766,2572.3,2571.7,3.88845]
[1723822365030,3.88737,2572.5,2571.9,3.88817]
[1723822365233,3.88759,2572.3,2571.8,0.388845]
[1723822365387,3.88742,2572.4,2571.9,3.88815]
[1723822365590,3.88742,2572.4,2571.9,4.7046815]
[1723822366534,0.07280335,2572.3,2571.7,3.88832]
[1723822366697,3.88746,2572.4,2571.7,3.88832]
[1723822366899,4.43766,2572.3,2571.7,3.88832]
[1723822367229,0.55,2572.3,2571.9,3.88816]
[1723822367541,4.43758,2572.3,2571.8,4.277102]
[1723822367739,3.88758,2572.3,2571.8,4.277102]
[1723822368027,3.88742,2572.4,2571.7,3.8884]
[1723822368230,2.4726,2572.8,2572.2,3.88763]
[1723822368531,2.4726,2572.8,2571.9,2.4886]
[1723822368532,2.4726,2572.8,2572.4,3.88733]
[1723822368832,3.88653,2573.0,2572.5,3.88717]
[1723822369154,3.88653,2573.0,2572.4,3.88733]
[1723822369436,3.88667,2572.9,2572.4,4.276063]
[1723822369795,3.88667,2572.9,2572.4,3.88733]
[1723822371106,0.07280335,2572.8,2572.2,3.88758]
[1723822371308,0.07280335,2572.8,2572.1,3.88786]
[1723822371309,3.88704,2572.7,2572.1,3.88786]
[1723822371628,3.88704,2572.7,2572.2,3.0]
[1723822371940,7.77415,2572.7,2572.2,3.0]
[1723822372099,7.7741,2572.7,2572.2,3.0]
[1723822372300,3.88704,2572.7,2572.2,6.88767]
[1723822372613,3.88725,2572.6,2572.2,3.0]
[1723822372813,3.88725,2572.6,2572.1,3.88779]
[1723822373009,3.88725,2572.6,2571.8,3.88829]
[1723822373010,3.88746,2572.4,2571.8,3.88829]
[1723822373214,3.88746,2572.4,2571.7,11.33836]
[1723822373215,3.8878,2572.2,2571.7,11.33836]
[1723822373522,0.07280335,2572.1,2571.3,3.88898]
[1723822373846,3.88805,2572.0,2571.3,3.88898]
[1723822374024,3.88805,2572.0,2571.5,3.88877]
[1723822374233,3.88805,2572.0,2571.0,3.88951]
[1723822374234,3.8887,2571.6,2571.1,3.88929]
[1723822374962,0.07280335,2571.5,2571.0,3.88953]
[1723822375142,3.96158335,2571.5,2571.0,4.5621159]
[1723822375455,3.88808,2572.0,2571.4,3.88891]
[1723822375456,3.88812,2572.0,2571.4,3.88891]
[1723822375656,3.88834,2571.8,2571.2,3.8891]
[1723822375953,3.88834,2571.8,2571.0,0.6725859]
[1723822375954,3.88812,2572.0,2571.0,0.6725859]
[1723822376254,3.88825,2571.9,2571.1,4.34551359]
[1723822376441,3.88825,2571.9,2571.3,3.88894]
[1723822376641,3.88834,2571.8,2571.3,3.88894]
[1723822376855,3.88812,2572.0,2571.3,3.88894]
[1723822377054,6.38481,2572.2,2571.6,3.88854]
[1723822377228,6.3848,2572.2,2571.6,3.88854]
[1723822377429,3.88789,2572.1,2571.6,3.88854]
[1723822377972,7.77528,2572.3,2571.7,3.88846]
[1723822378160,0.55,2572.5,2571.7,3.88846]
[1723822378161,3.88735,2572.5,2572.0,3.88793]
[1723822378470,3.88735,2572.5,2571.8,7.77643]
[1723822378471,3.88742,2572.4,2571.8,7.77643]
[1723822378641,3.88742,2572.4,2571.9,3.88814]
[1723822378834,3.88735,2572.5,2572.0,3.888]
[1723822379478,3.88705,2572.7,2572.2,3.88771]
[1723822379678,1.19990259,2573.3,2571.9,0.8165184]
[1723822379679,2.4406,2573.3,2572.4,3.88739]
[1723822379969,2.4406,2573.3,2572.5,0.388739]
[1723822379970,3.88667,2572.9,2572.5,0.388739]
[1723822380151,3.88667,2572.9,2572.4,3.88734]
[1723822380328,3.88667,2572.9,2572.2,3.88762]
[1723822380329,3.88701,2572.7,2572.2,3.88762]
[1723822380524,3.88701,2572.7,2572.1,2.3562]
[1723822380743,3.88675,2572.9,2572.1,6.36226784]
[1723822380940,3.88675,2572.9,2572.2,3.88757]
[1723822381243,3.88675,2572.9,2572.1,6.36226784]
[1723822381244,3.88652,2573.0,2572.5,3.88726]
[1723822381650,3.88652,2573.0,2572.4,3.88733]
[1723822382275,3.88674,2572.9,2572.4,4.33968568]
[1723822382649,3.88674,2572.9,2572.4,8.22702568]
[1723822383092,3.88674,2572.9,2572.4,4.33967568]
[1723822383249,3.88659,2573.0,2572.5,3.88726]
[1723822383656,3.88666,2572.9,2572.4,4.33967568]
[1723822384171,3.88652,2573.0,2572.4,4.33967568]
[1723822384352,3.88652,2573.0,2572.5,0.43396757]
[1723822384555,3.88652,2573.0,2572.4,4.33967568]
[1723822384979,3.88645,2573.1,2572.4,4.33967568]
[1723822384980,3.88667,2572.9,2572.4,4.33967568]
[1723822385162,3.88682,2572.8,2572.1,9.24405]
[1723822385363,3.88682,2572.8,2572.0,3.88793]
[1723822385364,3.88727,2572.5,2572.0,3.88793]
[1723822385591,7.77533,2572.3,2571.8,3.88821]
[1723822385899,3.88763,2572.3,2571.7,3.88836]
[1723822386117,0.07280335,2572.2,2571.6,3.88852]
[1723822386253,3.88763,2572.3,2571.7,4.277253]
[1723822386612,0.42052128,2572.2,2571.7,0.388853]
[1723822386903,1.19990259,2572.5,2571.4,3.88878]
[1723822386904,3.88805,2572.0,2571.4,3.88878]
[1723822387055,3.88805,2572.0,2571.4,4.527208]
[1723822387256,3.88805,2572.0,2571.4,8.416048]
[1723822387492,3.88805,2572.0,2571.4,8.416028]
[1723822387652,3.88805,2572.0,2571.5,6.88877]
[1723822388388,3.8878,2572.2,2571.7,3.88847]
[1723822388580,3.8878,2572.2,2571.7,8.854594]
[1723822388779,3.8878,2572.2,2571.7,4.966114]
[1723822389090,3.88749,2572.4,2571.7,4.966114]
[1723822389091,7.77503,2572.4,2571.8,3.88822]
[1723822389299,7.77503,2572.4,2571.8,4.7736534]
[1723822389500,3.88758,2572.3,2571.8,4.7736534]
[1723822389800,3.88773,2572.2,2571.8,0.8854334]
[1723822389978,3.88773,2572.2,2571.7,3.0]
[1723822390326,3.88819,2571.9,2571.7,3.0]
[1723822390501,3.88788,2572.1,2571.5,3.0]
[1723822390807,3.88788,2572.1,2571.5,4.0911818]
[1723822390808,0.42089309,2572.0,2571.5,4.0911818]
[1723822390983,3.88788,2572.1,2571.6,3.88862]
[1723822391187,3.88788,2572.1,2571.5,7.9798818]
[1723822391188,0.42090629,2572.0,2571.5,7.9798818]
[1723822391394,0.72701996,2572.2,2571.5,4.0911818]
[1723822391585,0.42089888,2572.1,2571.5,4.0911818]
[1723822391788,0.42089888,2572.0,2571.6,7.77709]
[1723822392116,3.88788,2572.1,2571.6,7.77708]
[1723822392312,3.88788,2572.1,2571.6,5.07536718]
[1723822392490,0.42092451,2572.0,2571.6,5.07536718]
[1723822392687,0.72705087,2572.2,2571.8,3.88823]
[1723822392903,4.61447087,2572.4,2571.9,3.88817]
[1723822393118,4.30864995,2572.3,2571.7,3.88833]
[1723822393293,4.30864995,2572.3,2571.8,3.88829]
[1723822393294,0.42107995,2572.2,2571.8,3.88829]
[1723822393493,0.42107995,2572.1,2571.8,3.88829]
[1723822393725,7.77522,2572.3,2571.8,3.88829]
[1723822393894,0.42109237,2572.2,2571.6,3.88848]
[1723822394097,3.88833,2571.8,2571.3,3.88903]
[1723822394326,0.42109237,2571.7,2571.3,3.88903]
[1723822394646,3.88833,2571.8,2571.3,3.88903]
[1723822394945,0.42108404,2571.7,2571.3,1.522841]
[1723822395090,3.88835,2571.8,2571.3,3.889]
[1723822395292,0.42106215,2571.7,2571.3,3.889]
[1723822395605,3.88835,2571.8,2571.3,3.889]
[1723822395606,3.88835,2571.8,2571.3,5.0229]
[1723822395801,3.88862,2571.6,2571.2,7.45]
[1723822396117,3.88878,2571.5,2571.0,3.0]
[1723822396298,3.88843,2571.8,2571.0,3.0]
[1723822396492,0.49381092,2571.7,2571.0,5.907438]
[1723822396831,4.30966986,2571.6,2571.1,3.8893]
[1723822397127,4.30966986,2571.6,2571.0,2.907438]
[1723822397128,3.88865,2571.6,2571.0,2.907438]
[1723822397306,4.38264593,2571.5,2570.9,3.88957]
[1723822397625,3.88886,2571.5,2571.0,3.0]
[1723822397811,3.88886,2571.5,2571.0,6.88952]
[1723822398217,3.96182335,2571.4,2570.7,3.88987]
[1723822398416,3.96182335,2571.4,2570.2,28.04248875]
[1723822398417,2.99274437,2571.3,2570.2,3.89067]
[1723822398623,0.07280335,2571.2,2570.6,3.89002]
[1723822398804,0.07280335,2571.2,2570.3,1.383497]
[1723822399126,7.77979,2570.8,2570.2,3.89066]
[1723822399429,0.97076177,2571.1,2570.4,3.89043]
[1723822399430,3.88963,2571.0,2570.4,3.89043]
[1723822399595,3.96243335,2571.0,2570.4,3.89043]
[1723822399931,3.88963,2571.0,2570.5,3.8902]
[1723822400089,3.8893,2571.2,2570.6,4.668051]
[1723822400288,2.57190335,2571.3,2570.2,0.23273]
[1723822400592,3.88972,2570.9,2570.4,3.89032]
[1723822400791,3.88972,2570.9,2570.3,3.89045]
[1723822400792,0.07280335,2570.8,2570.3,3.89045]
[1723822401136,3.89058,2570.4,2569.8,7.78256]
[1723822401300,3.89076,2570.2,2569.6,6.26733]